[Event "Grandmaster Tournament Blitz"]
[Site "Biel/Bienne, Switzerland"]
[Date "2019.07.27"]
[Round "3.3"]
[White "Abdusattorov, Nodirbek"]
[Black "Leko, Peter"]
[Result "1-0"]
[ECO "D40"]
[WhiteElo "2550"]
[BlackElo "2743"]
[PlyCount "110"]
[EventDate "2019.??.??"]
[EventType "blitz"]
[TimeControl "3+2"]
[WhiteClock "0:00:20"]
[BlackClock "0:00:14"]

1. d4 {[%emt 0:00:00]} Nf6 {[%emt 0:00:00]} 2. c4 {[%emt 0:00:00]} e6 {[%emt 0:
00:00]} 3. Nf3 {[%emt 0:00:00]} d5 {[%emt 0:00:00]} 4. Nc3 {[%emt 0:00:00]} c5
{[%emt 0:00:00]} 5. e3 {[%emt 0:00:00]} Nc6 {[%emt 0:00:00]} 6. dxc5 {[%emt 0:
00:00]} Bxc5 {[%emt 0:00:00]} 7. a3 {[%emt 0:00:00]} dxc4 {[%emt 0:00:00]} 8.
Qxd8+ {[%emt 0:00:00]} Nxd8 {[%emt 0:00:00]} 9. Bxc4 {[%emt 0:00:00]} a6 {
[%emt 0:00:00]} 10. b4 {[%emt 0:00:00]} Ba7 {[%emt 0:00:00]} 11. Bb2 {[%emt 0:
00:00]} b5 {[%emt 0:00:00]} 12. Bd3 {[%emt 0:00:00]} Bb7 {[%emt 0:00:00]} 13.
Ke2 {[%emt 0:00:00]} Nc6 {[%emt 0:00:00]} 14. Ne4 {[%emt 0:00:00]} Nxe4 {
[%emt 0:00:00]} 15. Bxe4 {[%emt 0:00:00]} Nd4+ {[%emt 0:00:00]} 16. Bxd4 {
[%emt 0:00:00]} Bxe4 {[%emt 0:00:00]} 17. Bxg7 {[%emt 0:00:00]} Rg8 {[%emt 0:
00:00]} 18. Be5 {[%emt 0:00:00]} Ke7 {[%emt 0:00:00]} 19. Rac1 {[%emt 0:00:00]}
Rac8 {[%emt 0:00:00]} 20. Rhd1 {[%emt 0:00:00]} Bd5 {[%emt 0:00:00]} 21. Bg3 {
[%emt 0:00:00]} Bb6 {[%emt 0:00:00]} 22. Nd2 {[%emt 0:00:00]} Bxg2 {[%emt 0:00:
00]} 23. f3 {[%emt 0:00:00]} f5 {[%emt 0:00:00]} 24. Nb3 {[%emt 0:00:00]} Bh3 {
[%emt 0:00:06]} 25. Nc5 {[%emt 0:00:00]} Bxc5 {[%emt 0:00:13]} 26. bxc5 {
[%emt 0:00:00]} Rc6 {[%emt 0:00:04]} 27. Bh4+ {[%emt 0:00:00]} Kf7 {[%emt 0:00:
13]} 28. Rd7+ {[%emt 0:00:00]} Ke8 {[%emt 0:00:01]} 29. Re7+ {[%emt 0:00:00]}
Kf8 {[%emt 0:00:00]} 30. Rxh7 {[%emt 0:00:00]} Rg7 {[%emt 0:00:06]} 31. Rxg7 {
[%emt 0:00:00]} Kxg7 {[%emt 0:00:01]} 32. Rg1+ {[%emt 0:00:00]} Kf7 {[%emt 0:
00:02]} 33. Rg3 {[%emt 0:00:00]} Rxc5 {[%emt 0:00:01]} 34. Rxh3 {[%emt 0:00:00]
} Rc2+ {[%emt 0:00:05]} 35. Kd3 {[%emt 0:00:00]} Ra2 {[%emt 0:00:01]} 36. Bg5 {
[%emt 0:00:00]} Rxa3+ {[%emt 0:00:01]} 37. Kc2 {[%emt 0:00:00]} b4 {[%emt 0:00:
02]} 38. Rh6 {[%emt 0:00:09]} a5 {[%emt 0:00:04]} 39. Rf6+ {[%emt 0:00:01]} Ke7
{[%emt 0:00:06]} 40. Rxf5+ {[%emt 0:00:01]} Kd6 {[%emt 0:00:01]} 41. Rf8 {
[%emt 0:00:08]} a4 {[%emt 0:00:04]} 42. Rb8 {[%emt 0:00:09]} Ra2+ {[%emt 0:00:
02]} 43. Kd3 {[%emt 0:00:07]} b3 {[%emt 0:00:01]} 44. Bf6 {[%emt 0:00:16]} Rxh2
{[%emt 0:00:02]} 45. f4 {[%emt 0:00:04]} Kc6 {[%emt 0:00:06]} 46. Be5 {[%emt 0:
00:02]} Ra2 {[%emt 0:00:02]} 47. e4 {[%emt 0:00:12]} Kc5 {[%emt 0:00:03]} 48.
f5 {[%emt 0:00:03]} exf5 {[%emt 0:00:01]} 49. exf5 {[%emt 0:00:01]} Kd5 {
[%emt 0:00:00]} 50. f6 {[%emt 0:00:03]} Rf2 {[%emt 0:00:06]} 51. Bc3 {[%emt 0:
00:09]} Rf3+ {[%emt 0:00:01]} 52. Kd2 {[%emt 0:00:01]} Kc4 {[%emt 0:00:04]} 53.
Rb4+ {[%emt 0:00:02]} Kc5 {[%emt 0:00:02]} 54. Rxa4 {[%emt 0:00:08]} b2 {
[%emt 0:00:01]} 55. Bxb2 {[%emt 0:00:02]} Kd5 {[%emt 0:00:03]} 1-0

[Event "Grandmaster Tournament Blitz"]
[Site "Biel/Bienne, Switzerland"]
[Date "2019.07.27"]
[Round "3.4"]
[White "Maghsoodloo, Parham"]
[Black "Vidit, Santosh Gujrathi"]
[Result "1/2-1/2"]
[ECO "C68"]
[WhiteElo "2719"]
[BlackElo "2694"]
[PlyCount "105"]
[EventDate "2019.??.??"]
[EventType "blitz"]
[TimeControl "3+2"]
[WhiteClock "0:00:12"]
[BlackClock "0:00:40"]

1. e4 {[%emt 0:00:00]} e5 {[%emt 0:00:00]} 2. Nf3 {[%emt 0:00:00]} Nc6 {
[%emt 0:00:00]} 3. Bb5 {[%emt 0:00:00]} a6 {[%emt 0:00:00]} 4. Bxc6 {[%emt 0:
00:00]} dxc6 {[%emt 0:00:00]} 5. d4 {[%emt 0:00:00]} exd4 {[%emt 0:00:00]} 6.
Qxd4 {[%emt 0:00:00]} Qxd4 {[%emt 0:00:00]} 7. Nxd4 {[%emt 0:00:00]} Bd7 {
[%emt 0:00:00]} 8. Nc3 {[%emt 0:00:00]} O-O-O {[%emt 0:00:00]} 9. Be3 {[%emt 0:
00:00]} Bb4 {[%emt 0:00:00]} 10. Nde2 {[%emt 0:00:00]} f5 {[%emt 0:00:00]} 11.
O-O-O {[%emt 0:00:00]} fxe4 {[%emt 0:00:00]} 12. Nxe4 {[%emt 0:00:00]} Nf6 {
[%emt 0:00:00]} 13. Nxf6 {[%emt 0:00:00]} gxf6 {[%emt 0:00:00]} 14. Nf4 {
[%emt 0:00:00]} Bd6 {[%emt 0:00:00]} 15. h3 {[%emt 0:00:00]} Rhg8 {[%emt 0:00:
00]} 16. Rhg1 {[%emt 0:00:00]} Bxf4 {[%emt 0:00:00]} 17. Bxf4 {[%emt 0:00:00]}
Be6 {[%emt 0:00:00]} 18. Rde1 {[%emt 0:00:00]} Rde8 {[%emt 0:00:00]} 19. g4 {
[%emt 0:00:00]} Bf7 {[%emt 0:00:00]} 20. Be3 {[%emt 0:00:00]} h5 {[%emt 0:00:
00]} 21. gxh5 {[%emt 0:00:00]} Bxh5 {[%emt 0:00:00]} 22. h4 {[%emt 0:00:00]}
Rxg1 {[%emt 0:00:00]} 23. Rxg1 {[%emt 0:00:00]} Re4 {[%emt 0:00:00]} 24. Rg8+ {
[%emt 0:00:00]} Kd7 {[%emt 0:00:00]} 25. Rg7+ {[%emt 0:00:00]} Kc8 {[%emt 0:00:
00]} 26. Rh7 {[%emt 0:00:00]} Rxh4 {[%emt 0:00:00]} 27. Kd2 {[%emt 0:00:00]} b6
{[%emt 0:00:00]} 28. b4 {[%emt 0:00:00]} a5 {[%emt 0:00:04]} 29. bxa5 {[%emt 0:
00:21]} bxa5 {[%emt 0:00:01]} 30. c3 {[%emt 0:00:01]} Rh1 {[%emt 0:00:09]} 31.
Rh6 {[%emt 0:00:36]} f5 {[%emt 0:00:07]} 32. Bf4 {[%emt 0:00:05]} Bf3 {[%emt 0:
00:04]} 33. Rf6 {[%emt 0:00:02]} Rd1+ {[%emt 0:00:09]} 34. Ke3 {[%emt 0:00:01]}
Be4 {[%emt 0:00:05]} 35. c4 {[%emt 0:00:05]} Rd3+ {[%emt 0:00:02]} 36. Ke2 {
[%emt 0:00:01]} Ra3 {[%emt 0:00:04]} 37. Rf7 {[%emt 0:00:02]} Rxa2+ {[%emt 0:
00:01]} 38. Ke3 {[%emt 0:00:00]} Ra3+ {[%emt 0:00:03]} 39. Kd4 {[%emt 0:00:04]}
Rd3+ {[%emt 0:00:01]} 40. Kc5 {[%emt 0:00:03]} Rd7 {[%emt 0:00:07]} 41. Rxd7 {
[%emt 0:00:03]} Kxd7 42. Be5 {[%emt 0:00:01]} a4 {[%emt 0:00:03]} 43. f4 {
[%emt 0:00:01]} a3 {[%emt 0:00:03]} 44. Kb4 {[%emt 0:00:02]} a2 {[%emt 0:00:01]
} 45. Ka3 {[%emt 0:00:02]} Bb1 {[%emt 0:00:01]} 46. Kb2 {[%emt 0:00:05]} Kc8 {
[%emt 0:00:02]} 47. c5 {[%emt 0:00:01]} Kb7 {[%emt 0:00:00]} 48. Ka1 {[%emt 0:
00:01]} Ka6 {[%emt 0:00:02]} 49. Bxc7 {[%emt 0:00:01]} Kb5 {[%emt 0:00:01]} 50.
Bd6 {[%emt 0:00:02]} Kc4 {[%emt 0:00:00]} 51. Kb2 {[%emt 0:00:01]} Kd4 {
[%emt 0:00:02]} 52. Ka1 {[%emt 0:00:00]} Ke4 {[%emt 0:00:00]} 53. Kb2 {[%emt 0:
00:01] Ke5} 1/2-1/2

[Event "Grandmaster Tournament Blitz"]
[Site "Biel/Bienne, Switzerland"]
[Date "2019.07.27"]
[Round "4.1"]
[White "Shankland, Sam"]
[Black "Vidit, Santosh Gujrathi"]
[Result "0-1"]
[ECO "D38"]
[WhiteElo "2660"]
[BlackElo "2694"]
[PlyCount "78"]
[EventDate "2019.??.??"]
[EventType "blitz"]
[TimeControl "3+2"]
[WhiteClock "0:00:07"]
[BlackClock "0:00:09"]

1. d4 {[%emt 0:00:00]} Nf6 {[%emt 0:00:00]} 2. c4 {[%emt 0:00:00]} e6 {[%emt 0:
00:00]} 3. Nf3 {[%emt 0:00:00]} d5 {[%emt 0:00:00]} 4. Nc3 {[%emt 0:00:00]} Bb4
{[%emt 0:00:00]} 5. cxd5 {[%emt 0:00:00]} exd5 {[%emt 0:00:00]} 6. Bg5 {
[%emt 0:00:00]} h6 {[%emt 0:00:00]} 7. Bh4 {[%emt 0:00:00]} O-O {[%emt 0:00:00]
} 8. e3 {[%emt 0:00:00]} Bf5 {[%emt 0:00:00]} 9. Qb3 {[%emt 0:00:00]} Bxc3+ {
[%emt 0:00:00]} 10. Qxc3 {[%emt 0:00:00]} g5 {[%emt 0:00:00]} 11. Bg3 {[%emt 0:
00:00]} Ne4 {[%emt 0:00:00]} 12. Qa3 {[%emt 0:00:00]} Re8 {[%emt 0:00:00]} 13.
Bd3 {[%emt 0:00:00]} h5 {[%emt 0:00:00]} 14. Rc1 {[%emt 0:00:00]} Nc6 {[%emt 0:
00:00]} 15. O-O {[%emt 0:00:00]} h4 {[%emt 0:00:00]} 16. Bxc7 {[%emt 0:00:00]}
Qxc7 17. Nxg5 Qd7 {[%emt 0:00:00]} 18. Nxe4 {[%emt 0:00:00]} Bxe4 {[%emt 0:00:
00]} 19. Bxe4 {[%emt 0:00:00]} Rxe4 {[%emt 0:00:00]} 20. h3 {[%emt 0:00:00]}
Kh8 {[%emt 0:00:00]} 21. Rc5 {[%emt 0:00:11]} Rg8 {[%emt 0:00:00]} 22. Kh1 {
[%emt 0:00:01]} Re6 {[%emt 0:00:00]} 23. Qb3 {[%emt 0:00:04]} Rd6 {[%emt 0:00:
00]} 24. e4 {[%emt 0:00:16]} Ne7 {[%emt 0:00:00]} 25. Rfc1 {[%emt 0:00:07]} Qe6
{[%emt 0:00:00]} 26. e5 {[%emt 0:00:09]} Rb6 {[%emt 0:00:00]} 27. Qf3 {[%emt 0:
00:01]} Rxb2 {[%emt 0:00:22]} 28. Rc7 Nf5 {[%emt 0:00:00]} 29. Kh2 {[%emt 0:00:
02]} Qg6 {[%emt 0:00:00]} 30. Rd1 {[%emt 0:00:03]} Rxa2 {[%emt 0:00:05]} 31.
Rxb7 a5 {[%emt 0:00:17]} 32. Rb5 {[%emt 0:00:08]} a4 {[%emt 0:00:17]} 33. Rxd5
{[%emt 0:00:02]} a3 {[%emt 0:00:01]} 34. Ra5 {[%emt 0:00:01]} Qg5 {[%emt 0:00:
04]} 35. Ra8 {[%emt 0:00:05]} Rxa8 {[%emt 0:00:02]} 36. Qxa8+ {[%emt 0:00:00]}
Kg7 {[%emt 0:00:01]} 37. Qf3 {[%emt 0:00:01]} Rb2 {[%emt 0:00:04]} 38. Qxa3 {
[%emt 0:00:06]} Rxf2 {[%emt 0:00:01]} 39. Rg1 Qf4+ {[%emt 0:00:03]} 0-1

[Event "Grandmaster Tournament Blitz"]
[Site "Biel/Bienne, Switzerland"]
[Date "2019.07.27"]
[Round "4.2"]
[White "Leko, Peter"]
[Black "Maghsoodloo, Parham"]
[Result "1/2-1/2"]
[ECO "D24"]
[WhiteElo "2743"]
[BlackElo "2719"]
[PlyCount "66"]
[EventDate "2019.??.??"]
[EventType "blitz"]
[TimeControl "3+2"]
[WhiteClock "0:00:18"]
[BlackClock "0:00:10"]

1. d4 {[%emt 0:00:00]} Nf6 {[%emt 0:00:00]} 2. c4 {[%emt 0:00:00]} e6 {[%emt 0:
00:00]} 3. Nf3 {[%emt 0:00:00]} d5 {[%emt 0:00:00]} 4. Nc3 {[%emt 0:00:00]}
dxc4 {[%emt 0:00:00]} 5. e4 {[%emt 0:00:00]} b5 {[%emt 0:00:00]} 6. e5 {
[%emt 0:00:00]} Nd5 {[%emt 0:00:00]} 7. Nxb5 {[%emt 0:00:00]} Nb6 {[%emt 0:00:
00]} 8. Be2 {[%emt 0:00:00]} Nc6 {[%emt 0:00:00]} 9. O-O {[%emt 0:00:00]} Be7 {
[%emt 0:00:00]} 10. Qd2 {[%emt 0:00:00]} O-O {[%emt 0:00:00]} 11. Qf4 {[%emt 0:
00:00]} Nb4 {[%emt 0:00:00]} 12. Rd1 {[%emt 0:00:00]} a5 {[%emt 0:00:00]} 13.
Qg4 {[%emt 0:00:00]} Kh8 {[%emt 0:00:00]} 14. Nc3 {[%emt 0:00:00]} f5 {[%emt 0:
00:00]} 15. exf6 {[%emt 0:00:00]} gxf6 {[%emt 0:00:00]} 16. b3 {[%emt 0:00:00]}
cxb3 {[%emt 0:00:00]} 17. axb3 {[%emt 0:00:00]} Qd7 {[%emt 0:00:00]} 18. Qh5 {
[%emt 0:00:00]} Bb7 {[%emt 0:00:00]} 19. Rxa5 {[%emt 0:00:00]} Rxa5 {[%emt 0:
00:00]} 20. Qxa5 {[%emt 0:00:00]} Rg8 {[%emt 0:00:00]} 21. Qh5 {[%emt 0:00:00]}
N6d5 {[%emt 0:00:04]} 22. Bd2 {[%emt 0:00:00]} Nxc3 {[%emt 0:00:09]} 23. Bxc3 {
[%emt 0:00:00]} Nd5 {[%emt 0:00:01]} 24. Bd2 {[%emt 0:00:00]} Bb4 {[%emt 0:00:
06]} 25. Bxb4 {[%emt 0:00:23]} Nf4 {[%emt 0:00:01]} 26. Qh6 {[%emt 0:00:01]}
Nxe2+ {[%emt 0:00:35]} 27. Kf1 {[%emt 0:00:02]} Qb5 {[%emt 0:00:01]} 28. Qxf6+
{[%emt 0:00:02]} Rg7 {[%emt 0:00:01]} 29. Bf8 {[%emt 0:00:25]} Nf4+ {[%emt 0:
00:01]} 30. Kg1 {[%emt 0:00:01]} Nh3+ {[%emt 0:00:01]} 31. Kh1 {[%emt 0:00:01]}
Nxf2+ {[%emt 0:00:01]} 32. Kg1 {[%emt 0:00:00]} Nh3+ {[%emt 0:00:01]} 33. Kh1 {
[%emt 0:00:01]} Nf2+ {[%emt 0:00:01]} 1/2-1/2

[Event "Grandmaster Tournament Blitz"]
[Site "Biel/Bienne, Switzerland"]
[Date "2019.07.27"]
[Round "4.3"]
[White "Bogner, Sebastian"]
[Black "Abdusattorov, Nodirbek"]
[Result "0-1"]
[ECO "C54"]
[WhiteElo "2584"]
[BlackElo "2550"]
[PlyCount "170"]
[EventDate "2019.??.??"]
[EventType "blitz"]
[TimeControl "3+2"]
[WhiteClock "0:00:04"]
[BlackClock "0:00:15"]

1. e4 {[%emt 0:00:00]} e5 {[%emt 0:00:00]} 2. Nf3 {[%emt 0:00:00]} Nc6 {
[%emt 0:00:00]} 3. Bc4 {[%emt 0:00:00]} Bc5 {[%emt 0:00:00]} 4. O-O {[%emt 0:
00:00]} Nf6 {[%emt 0:00:00]} 5. d3 {[%emt 0:00:00]} d6 {[%emt 0:00:00]} 6. c3 {
[%emt 0:00:00]} a6 {[%emt 0:00:00]} 7. a4 {[%emt 0:00:00]} Ba7 {[%emt 0:00:00]}
8. Re1 {[%emt 0:00:00]} O-O {[%emt 0:00:00]} 9. h3 {[%emt 0:00:00]} h6 {
[%emt 0:00:00]} 10. Nbd2 {[%emt 0:00:00]} Re8 {[%emt 0:00:00]} 11. Nf1 {
[%emt 0:00:00]} Be6 {[%emt 0:00:00]} 12. Ng3 {[%emt 0:00:00]} d5 {[%emt 0:00:
00]} 13. exd5 {[%emt 0:00:00]} Bxd5 {[%emt 0:00:00]} 14. Bxd5 {[%emt 0:00:00]}
Qxd5 {[%emt 0:00:00]} 15. Be3 {[%emt 0:00:00]} Bxe3 {[%emt 0:00:00]} 16. Rxe3 {
[%emt 0:00:00]} Rad8 {[%emt 0:00:00]} 17. Qc2 {[%emt 0:00:00]} Qd7 {[%emt 0:00:
00]} 18. Rae1 {[%emt 0:00:00]} Nd5 {[%emt 0:00:00]} 19. Re4 {[%emt 0:00:00]} f6
{[%emt 0:00:00]} 20. Qb3 {[%emt 0:00:00]} Na5 {[%emt 0:00:00]} 21. Qc2 {
[%emt 0:00:00]} Nc6 {[%emt 0:00:00]} 22. Qb3 {[%emt 0:00:00]} Na5 {[%emt 0:00:
00]} 23. Qc2 {[%emt 0:00:00]} c5 {[%emt 0:00:00]} 24. d4 {[%emt 0:00:00]} cxd4
{[%emt 0:00:00]} 25. cxd4 {[%emt 0:00:00]} Rc8 {[%emt 0:00:00]} 26. Qd1 {
[%emt 0:00:00]} exd4 {[%emt 0:00:06]} 27. Rxd4 {[%emt 0:00:00]} Rxe1+ {[%emt 0:
00:01]} 28. Nxe1 {[%emt 0:00:00]} Rd8 {[%emt 0:00:01]} 29. Nc2 {[%emt 0:00:06]}
Nc6 {[%emt 0:00:02]} 30. Rd2 {[%emt 0:00:08]} Qe6 {[%emt 0:00:27]} 31. Nd4 {
[%emt 0:00:09]} Nxd4 {[%emt 0:00:03]} 32. Rxd4 {[%emt 0:00:01]} Rd7 {[%emt 0:
00:02]} 33. Ne4 {[%emt 0:00:02]} Nb6 {[%emt 0:00:04]} 34. Nc5 {[%emt 0:00:14]}
Rxd4 {[%emt 0:00:02]} 35. Qxd4 {[%emt 0:00:00]} Qc6 {[%emt 0:00:01]} 36. b3 {
[%emt 0:00:03]} Nd5 {[%emt 0:00:02]} 37. Qc4 {[%emt 0:00:04]} b5 {[%emt 0:00:
10]} 38. axb5 {[%emt 0:00:04]} axb5 {[%emt 0:00:00]} 39. Qc1 {[%emt 0:00:02]}
Ne7 {[%emt 0:00:06]} 40. Qe3 {[%emt 0:00:02]} Nf5 {[%emt 0:00:03]} 41. Qc3 {
[%emt 0:00:17]} Qd5 {[%emt 0:00:00]} 42. b4 {[%emt 0:00:02]} Nd4 {[%emt 0:00:
02]} 43. Qd3 {[%emt 0:00:01]} Qc4 {[%emt 0:00:05]} 44. Qxc4+ {[%emt 0:00:02]}
bxc4 {[%emt 0:00:01]} 45. Kf1 {[%emt 0:00:02]} c3 {[%emt 0:00:01]} 46. Ke1 {
[%emt 0:00:03]} Nc2+ {[%emt 0:00:01]} 47. Kd1 {[%emt 0:00:03]} Nxb4 {[%emt 0:
00:01]} 48. Ne4 {[%emt 0:00:01]} c2+ {[%emt 0:00:03]} 49. Kd2 {[%emt 0:00:01]}
Kf7 {[%emt 0:00:03]} 50. Nc5 {[%emt 0:00:05]} Kg6 {[%emt 0:00:04]} 51. Nb3 {
[%emt 0:00:01]} Nd3 {[%emt 0:00:02]} 52. Kxc2 {[%emt 0:00:07]} Nxf2 {[%emt 0:
00:01]} 53. Kd2 {[%emt 0:00:01]} Ne4+ {[%emt 0:00:02]} 54. Ke2 {[%emt 0:00:01]}
Kf5 {[%emt 0:00:02]} 55. Nd4+ {[%emt 0:00:04]} Ke5 {[%emt 0:00:01]} 56. Ke3 {
[%emt 0:00:03]} Nd6 {[%emt 0:00:03]} 57. Nf3+ {[%emt 0:00:02]} Kd5 {[%emt 0:00:
01]} 58. Kf4 {[%emt 0:00:02]} Ke6 {[%emt 0:00:06]} 59. g4 {[%emt 0:00:02]} g5+
{[%emt 0:00:01]} 60. Ke3 {[%emt 0:00:01]} Kd5 {[%emt 0:00:02]} 61. h4 {[%emt 0:
00:03]} Nc4+ {[%emt 0:00:00]} 62. Kf2 {[%emt 0:00:08]} Ne5 {[%emt 0:00:03]} 63.
hxg5 {[%emt 0:00:01]} hxg5 {[%emt 0:00:09]} 64. Nh2 {[%emt 0:00:04]} Ke4 {
[%emt 0:00:02]} 65. Kg3 {[%emt 0:00:01]} Nc4 {[%emt 0:00:01]} 66. Nf1 {[%emt 0:
00:02]} Kd3 {[%emt 0:00:06]} 67. Nh2 {[%emt 0:00:01]} Nd2 {[%emt 0:00:02]} 68.
Kf2 {[%emt 0:00:03]} Ke4 {[%emt 0:00:01]} 69. Kg3 {[%emt 0:00:01]} Ke3 {
[%emt 0:00:01]} 70. Kg2 {[%emt 0:00:03]} Kf4 {[%emt 0:00:00]} 71. Kf2 {[%emt 0:
00:01]} Nc4 {[%emt 0:00:01]} 72. Kg2 {[%emt 0:00:01]} Ne5 {[%emt 0:00:07]} 73.
Kh3 {[%emt 0:00:01]} Nd3 {[%emt 0:00:03]} 74. Kg2 {[%emt 0:00:02]} Nc5 {
[%emt 0:00:01]} 75. Kh3 {[%emt 0:00:03]} Nd7 {[%emt 0:00:01]} 76. Kg2 {[%emt 0:
00:02]} Nb6 {[%emt 0:00:01]} 77. Kh3 {[%emt 0:00:01]} Nd5 {[%emt 0:00:00]} 78.
Nf1 {[%emt 0:00:03]} Ne3 {[%emt 0:00:02]} 79. Nh2 {[%emt 0:00:01]} Ke5 {
[%emt 0:00:02]} 80. Kg3 {[%emt 0:00:02]} Ke4 {[%emt 0:00:01]} 81. Nf3 {[%emt 0:
00:03]} Nc4 {[%emt 0:00:03]} 82. Ng1 {[%emt 0:00:04]} Nd2 {[%emt 0:00:02]} 83.
Nh3 {[%emt 0:00:01]} Ke3 {[%emt 0:00:01]} 84. Nf2 {[%emt 0:00:03]} Ne4+ {
[%emt 0:00:00]} 85. Nxe4 {[%emt 0:00:03]} Kxe4 {[%emt 0:00:01]} 0-1

[Event "Grandmaster Tournament Blitz"]
[Site "Biel/Bienne, Switzerland"]
[Date "2019.07.27"]
[Round "4.4"]
[White "Cori, Jorge"]
[Black "Georgiadis, Nico"]
[Result "1-0"]
[ECO "A85"]
[WhiteElo "2558"]
[BlackElo "2464"]
[PlyCount "79"]
[EventDate "2019.??.??"]
[EventType "blitz"]
[TimeControl "3+2"]
[WhiteClock "0:00:26"]
[BlackClock "0:00:05"]

1. d4 {[%emt 0:00:00]} f5 {[%emt 0:00:00]} 2. Nf3 {[%emt 0:00:00]} Nf6 {
[%emt 0:00:00]} 3. c4 {[%emt 0:00:00]} g6 4. e3 Bg7 {[%emt 0:00:00]} 5. Nc3 {
[%emt 0:00:00]} O-O {[%emt 0:00:00]} 6. Be2 {[%emt 0:00:00]} d6 {[%emt 0:00:00]
} 7. b4 {[%emt 0:00:00]} Qe8 {[%emt 0:00:00]} 8. O-O {[%emt 0:00:00]} e5 {
[%emt 0:00:00]} 9. dxe5 {[%emt 0:00:00]} dxe5 {[%emt 0:00:00]} 10. Ba3 {
[%emt 0:00:00]} h6 {[%emt 0:00:00]} 11. b5 {[%emt 0:00:00]} Rf7 {[%emt 0:00:00]
} 12. Qb3 {[%emt 0:00:00]} Kh7 {[%emt 0:00:00]} 13. Rfd1 {[%emt 0:00:00]} e4 {
[%emt 0:00:00]} 14. Nd4 {[%emt 0:00:00]} Nbd7 {[%emt 0:00:00]} 15. Nd5 {
[%emt 0:00:00]} Ne5 {[%emt 0:00:00]} 16. Rac1 {[%emt 0:00:00]} Be6 {[%emt 0:00:
00]} 17. Nf4 {[%emt 0:00:00]} Bd7 {[%emt 0:00:00]} 18. c5 {[%emt 0:00:00]} c6 {
[%emt 0:00:00]} 19. Bb2 {[%emt 0:00:00]} g5 {[%emt 0:00:04]} 20. Nfe6 {[%emt 0:
00:00]} Nd5 {[%emt 0:00:04]} 21. Nxg7 {[%emt 0:00:00]} Rxg7 {[%emt 0:00:01]}
22. bxc6 {[%emt 0:00:00]} bxc6 {[%emt 0:00:01]} 23. Nb5 {[%emt 0:00:00]} Rb8 {
[%emt 0:00:14]} 24. Qa3 {[%emt 0:00:00]} f4 {[%emt 0:00:15]} 25. Nd6 {[%emt 0:
00:00]} Qe6 {[%emt 0:00:02]} 26. Nxe4 {[%emt 0:00:00]} fxe3 {[%emt 0:00:03]}
27. fxe3 {[%emt 0:00:00]} Nxe3 {[%emt 0:00:01]} 28. Bxe5 {[%emt 0:00:28]} Qxe5
{[%emt 0:00:07]} 29. Qxe3 {[%emt 0:00:02]} Re7 {[%emt 0:00:02]} 30. Bd3 {
[%emt 0:00:02]} Kg7 {[%emt 0:00:06]} 31. Qg3 {[%emt 0:00:03]} Bf5 {[%emt 0:00:
04]} 32. Qxe5+ {[%emt 0:00:02]} Rxe5 {[%emt 0:00:01]} 33. Nf2 {[%emt 0:00:04]}
Be6 {[%emt 0:00:02]} 34. Bc4 {[%emt 0:00:03]} Bxc4 {[%emt 0:00:05]} 35. Rxc4 {
[%emt 0:00:01]} Re2 {[%emt 0:00:01]} 36. Re4 {[%emt 0:00:05]} Rxa2 {[%emt 0:00:
02]} 37. Re7+ {[%emt 0:00:02]} Kf6 {[%emt 0:00:01]} 38. Rde1 {[%emt 0:00:07]}
Rbb2 {[%emt 0:00:05]} 39. R1e6+ {[%emt 0:00:02]} Kf5 {[%emt 0:00:00]} 40. g4+ {
[%emt 0:00:01]} 1-0

[Event "Grandmaster Tournament Blitz"]
[Site "Biel/Bienne, Switzerland"]
[Date "2019.07.27"]
[Round "5.1"]
[White "Georgiadis, Nico"]
[Black "Shankland, Sam"]
[Result "0-1"]
[ECO "D17"]
[WhiteElo "2464"]
[BlackElo "2660"]
[PlyCount "88"]
[EventDate "2019.??.??"]
[EventType "blitz"]
[TimeControl "3+2"]
[WhiteClock "0:00:04"]
[BlackClock "0:00:15"]

1. d4 {[%emt 0:00:00]} d5 {[%emt 0:00:00]} 2. c4 c6 3. Nf3 {[%emt 0:00:00]} Nf6
{[%emt 0:00:00]} 4. Nc3 {[%emt 0:00:00]} dxc4 {[%emt 0:00:00]} 5. a4 {[%emt 0:
00:00]} Bf5 {[%emt 0:00:00]} 6. Ne5 {[%emt 0:00:00]} e6 {[%emt 0:00:00]} 7. f3
{[%emt 0:00:00]} Bb4 {[%emt 0:00:00]} 8. Nxc4 {[%emt 0:00:00]} O-O {[%emt 0:00:
00]} 9. Kf2 {[%emt 0:00:00]} c5 {[%emt 0:00:00]} 10. e4 {[%emt 0:00:00]} Bg6 {
[%emt 0:00:00]} 11. Be3 {[%emt 0:00:00]} cxd4 {[%emt 0:00:00]} 12. Qxd4 {
[%emt 0:00:00]} Nc6 {[%emt 0:00:00]} 13. Qxd8 {[%emt 0:00:00]} Rfxd8 {[%emt 0:
00:00]} 14. Be2 {[%emt 0:00:00]} Nd4 {[%emt 0:00:00]} 15. Rac1 {[%emt 0:00:00]}
a6 {[%emt 0:00:00]} 16. Na2 {[%emt 0:00:00]} Bc5 {[%emt 0:00:00]} 17. a5 {
[%emt 0:00:00]} Nd7 {[%emt 0:00:00]} 18. b4 {[%emt 0:00:00]} Ba7 {[%emt 0:00:
00]} 19. Rhd1 {[%emt 0:00:00]} e5 {[%emt 0:00:00]} 20. Nd6 {[%emt 0:00:00]} b5
{[%emt 0:00:00]} 21. axb6 {[%emt 0:00:04]} Bxb6 {[%emt 0:00:00]} 22. Nc3 {
[%emt 0:00:04]} Nf8 {[%emt 0:00:00]} 23. Nc4 {[%emt 0:00:06]} Nxe2 {[%emt 0:00:
00]} 24. Kxe2 {[%emt 0:00:11]} Bxe3 {[%emt 0:00:01]} 25. Kxe3 {[%emt 0:00:02]}
f6 {[%emt 0:00:00]} 26. Rxd8 {[%emt 0:00:05]} Rxd8 {[%emt 0:00:01]} 27. Nd5 {
[%emt 0:00:01]} Ne6 {[%emt 0:00:06]} 28. Ra1 {[%emt 0:00:03]} Bf7 {[%emt 0:00:
10]} 29. Rxa6 {[%emt 0:00:06]} Nd4 {[%emt 0:00:01]} 30. Ncb6 {[%emt 0:00:09]}
h5 {[%emt 0:00:06]} 31. h4 {[%emt 0:00:04]} Bxd5 {[%emt 0:00:08]} 32. Nxd5 {
[%emt 0:00:02]} Rb8 {[%emt 0:00:01]} 33. Kd3 {[%emt 0:00:05]} Kh7 {[%emt 0:00:
01]} 34. Ra7 {[%emt 0:00:04]} Kh6 {[%emt 0:00:02]} 35. Rc7 {[%emt 0:00:03]} Ra8
{[%emt 0:00:01]} 36. Kc4 {[%emt 0:00:03]} Ra2 {[%emt 0:00:02]} 37. b5 {[%emt 0:
00:03]} Rc2+ {[%emt 0:00:01]} 38. Kb4 {[%emt 0:00:02]} Rb2+ {[%emt 0:00:01]}
39. Kc4 {[%emt 0:00:04]} Rxb5 {[%emt 0:00:09]} 40. Ne7 {[%emt 0:00:03]} Rb2 {
[%emt 0:00:01]} 41. Kd5 {[%emt 0:00:01]} Rxg2 {[%emt 0:00:04]} 42. f4 {[%emt 0:
00:02]} Rd2 {[%emt 0:00:20]} 43. fxe5 {[%emt 0:00:01]} Nb5+ {[%emt 0:00:05]}
44. Kc6 {[%emt 0:00:04]} Nxc7 {[%emt 0:00:00]} 0-1